[Event "Titled Tuesday Blitz May 9 Late 2023"]
[White "Dias, Joao Batista"]
[Black "Escalante Ramirez, Rafael"]
[WhiteFideId "2108240"]
[BlackFideId "3900177"]
[WhiteElo "1907"]
[BlackElo "2184"]
[Result "1/2-1/2"]
[Round "07"]
[TimeControl "180+2"]
[Date "2023.05.09"]
[WhiteClock "0:00:18"]
[BlackClock "0:00:43"]

1. e4 {[%clk 0:03:00]}  c5 {[%clk 0:02:57]} 2. Nf3 {[%clk 0:03:00]}  e6 {[%clk 0:02:56]} 3. d4 {[%clk 0:03:00]}  cxd4 {[%clk 0:02:55]} 4. Nxd4 {[%clk 0:03:00]}  a6 {[%clk 0:02:55]} 5. c4 {[%clk 0:02:59]}  Nf6 {[%clk 0:02:55]} 6. Nc3 {[%clk 0:03:00]}  Qc7 {[%clk 0:02:55]} 7. Bd3 {[%clk 0:03:00]}  b6 {[%clk 0:02:53]} 8. Be3 {[%clk 0:02:59]}  Bb7 {[%clk 0:02:53]} 9. f3 {[%clk 0:03:00]}  d6 {[%clk 0:02:42]} 10. O-O {[%clk 0:03:00]}  Nbd7 {[%clk 0:02:42]} 11. Qd2 {[%clk 0:03:00]}  Be7 {[%clk 0:02:41]} 12. b3 {[%clk 0:03:00]}  Rc8 {[%clk 0:02:39]} 13. Rad1 {[%clk 0:02:59]}  b5 {[%clk 0:02:36]} 14. Rc1 {[%clk 0:02:49]}  b4 {[%clk 0:02:33]} 15. Nce2 {[%clk 0:02:49]}  Nc5 {[%clk 0:02:29]} 16. Rfd1 {[%clk 0:02:45]}  Qb6 {[%clk 0:02:19]} 17. Bf2 {[%clk 0:02:43]}  O-O {[%clk 0:02:18]} 18. Bb1 {[%clk 0:02:38]}  Rfd8 {[%clk 0:02:16]} 19. Nc2 {[%clk 0:02:33]}  a5 {[%clk 0:02:15]} 20. Qf4 {[%clk 0:02:28]}  Qc7 {[%clk 0:01:56]} 21. Ne3 {[%clk 0:02:19]}  Nfd7 {[%clk 0:01:49]} 22. Ng4 {[%clk 0:02:13]}  Bf8 {[%clk 0:01:46]} 23. Qg3 {[%clk 0:02:13]}  Kh8 {[%clk 0:01:43]} 24. Be3 {[%clk 0:02:10]}  Ne5 {[%clk 0:01:40]} 25. Bd4 {[%clk 0:02:07]}  f6 {[%clk 0:01:38]} 26. Qh4 {[%clk 0:02:02]}  Qe7 {[%clk 0:01:33]} 27. f4 {[%clk 0:01:51]}  Ng6 {[%clk 0:01:32]} 28. Qh3 {[%clk 0:01:45]}  e5 {[%clk 0:01:31]} 29. Bxc5 {[%clk 0:01:40]}  dxc5 {[%clk 0:01:28]} 30. f5 {[%clk 0:01:39]}  Nf4 {[%clk 0:01:25]} 31. Nxf4 {[%clk 0:01:39]}  exf4 {[%clk 0:01:26]} 32. Qf3 {[%clk 0:01:37]}  Re8 {[%clk 0:01:20]} 33. Qxf4 {[%clk 0:01:32]}  Qf7 {[%clk 0:01:09]} 34. e5 {[%clk 0:01:29]}  fxe5 {[%clk 0:01:06]} 35. Nxe5 {[%clk 0:01:28]}  Qh5 {[%clk 0:01:06]} 36. Rd7 {[%clk 0:01:16]}  Ba8 {[%clk 0:00:58]} 37. Nf7+ {[%clk 0:01:14]}  Kg8 {[%clk 0:00:57]} 38. Nd6 {[%clk 0:01:00]}  Bxd6 {[%clk 0:00:55]} 39. Qxd6 {[%clk 0:00:59]}  Re2 {[%clk 0:00:52]} 40. Rd8+ {[%clk 0:00:55]}  Rxd8 {[%clk 0:00:50]} 41. Qxd8+ {[%clk 0:00:54]}  Re8 {[%clk 0:00:51]} 42. Qd3 {[%clk 0:00:46]}  Bxg2 {[%clk 0:00:49]} 43. Kxg2 {[%clk 0:00:45]}  Re2+ {[%clk 0:00:48]} 44. Kf1 {[%clk 0:00:41]}  Rxh2 {[%clk 0:00:43]} 45. Qd8+ {[%clk 0:00:29]}  Kf7 {[%clk 0:00:43]} 46. Qd7+ {[%clk 0:00:28]}  Kf8 {[%clk 0:00:43]} 47. Qd6+ {[%clk 0:00:24]}  Kf7 {[%clk 0:00:43]} 48. Qe6+ {[%clk 0:00:24]}  Kf8 {[%clk 0:00:43]} 49. Qc8+ {[%clk 0:00:19]}  Kf7 {[%clk 0:00:43]} 50. Qe6+ {[%clk 0:00:19]}  Kf8 {[%clk 0:00:43]} 51. Qc8+ {[%clk 0:00:18]}  Kf7 {[%clk 0:00:43]} 52. Qe6+ {[%clk 0:00:18]} 1/2-1/2


[Site "https://www.chess.com"]

[Event "Titled Tuesday Blitz May 9 Late 2023"]
[White "Almedina Ortiz, Edgardo J."]
[Black "Dmitriev, Sergey"]
[WhiteFideId "3100197"]
[BlackFideId "14101785"]
[WhiteElo "2217"]
[BlackElo "2132"]
[Result "1-0"]
[Round "07"]
[TimeControl "180+2"]
[Date "2023.05.09"]
[WhiteClock "0:00:05"]
[BlackClock "0:00:16"]

1. d4 {[%clk 0:03:00]}  d6 {[%clk 0:02:57]} 2. Nf3 {[%clk 0:02:58]}  g6 {[%clk 0:02:57]} 3. c4 {[%clk 0:02:48]}  Bg7 {[%clk 0:02:57]} 4. e4 {[%clk 0:02:47]}  Nf6 {[%clk 0:02:56]} 5. Nc3 {[%clk 0:02:47]}  Bg4 {[%clk 0:02:55]} 6. Be2 {[%clk 0:02:34]}  O-O {[%clk 0:02:54]} 7. Ng1 {[%clk 0:02:27]}  Bxe2 {[%clk 0:02:53]} 8. Ngxe2 {[%clk 0:02:27]}  Nc6 {[%clk 0:02:53]} 9. O-O {[%clk 0:02:21]}  e5 {[%clk 0:02:53]} 10. d5 {[%clk 0:02:21]}  Ne7 {[%clk 0:02:52]} 11. f3 {[%clk 0:02:17]}  Nh5 {[%clk 0:02:50]} 12. Be3 {[%clk 0:02:13]}  f5 {[%clk 0:02:50]} 13. c5 {[%clk 0:02:07]}  Qd7 {[%clk 0:02:39]} 14. a4 {[%clk 0:02:01]}  a6 {[%clk 0:02:37]} 15. a5 {[%clk 0:01:39]}  h6 {[%clk 0:02:21]} 16. Qb3 {[%clk 0:01:33]}  Rab8 {[%clk 0:02:19]} 17. cxd6 {[%clk 0:01:30]}  cxd6 {[%clk 0:02:18]} 18. Na4 {[%clk 0:01:29]}  g5 {[%clk 0:02:02]} 19. Nb6 {[%clk 0:01:27]}  Qe8 {[%clk 0:01:56]} 20. Rac1 {[%clk 0:01:17]}  g4 {[%clk 0:01:44]} 21. fxg4 {[%clk 0:01:13]}  fxg4 {[%clk 0:01:43]} 22. Rxf8+ {[%clk 0:01:12]}  Bxf8 {[%clk 0:01:43]} 23. Rc7 {[%clk 0:00:39]}  Qg6 {[%clk 0:01:26]} 24. Qd3 {[%clk 0:00:31]}  Nf6 {[%clk 0:01:18]} 25. Nc3 {[%clk 0:00:25]}  Ne8 {[%clk 0:01:17]} 26. Rd7 {[%clk 0:00:18]}  Nf6 {[%clk 0:01:16]} 27. Rxd6 {[%clk 0:00:17]}  Qg7 {[%clk 0:01:13]} 28. Re6 {[%clk 0:00:16]}  Nc8 {[%clk 0:01:10]} 29. Nxc8 {[%clk 0:00:13]}  Rxc8 {[%clk 0:01:10]} 30. Rxe5 {[%clk 0:00:13]}  Bd6 {[%clk 0:01:06]} 31. Rf5 {[%clk 0:00:13]}  Nd7 {[%clk 0:01:03]} 32. Bd4 {[%clk 0:00:11]}  Qg6 {[%clk 0:01:00]} 33. g3 {[%clk 0:00:10]}  Nc5 {[%clk 0:00:56]} 34. Qe3 {[%clk 0:00:09]}  Nb3 {[%clk 0:00:48]} 35. Rf6 {[%clk 0:00:09]}  Qh7 {[%clk 0:00:40]} 36. Rxd6 {[%clk 0:00:08]}  Rf8 {[%clk 0:00:38]} 37. Rf6 {[%clk 0:00:07]}  Rxf6 {[%clk 0:00:37]} 38. Bxf6 {[%clk 0:00:07]}  Qf7 {[%clk 0:00:36]} 39. Qxh6 {[%clk 0:00:06]}  Qh7 {[%clk 0:00:33]} 40. Qxh7+ {[%clk 0:00:06]}  Kxh7 {[%clk 0:00:33]} 41. Bd8 {[%clk 0:00:07]}  Nd2 {[%clk 0:00:31]} 42. Bb6 {[%clk 0:00:07]}  Nc4 {[%clk 0:00:31]} 43. b3 {[%clk 0:00:07]}  Nd6 {[%clk 0:00:30]} 44. e5 {[%clk 0:00:07]}  Nc8 {[%clk 0:00:30]} 45. e6 {[%clk 0:00:06]}  Kg7 {[%clk 0:00:30]} 46. Bd4+ {[%clk 0:00:05]}  Kf8 {[%clk 0:00:30]} 47. Bf6 {[%clk 0:00:05]}  Nd6 {[%clk 0:00:29]} 48. Kg2 {[%clk 0:00:03]}  Ke8 {[%clk 0:00:29]} 49. h3 {[%clk 0:00:03]}  gxh3+ {[%clk 0:00:28]} 50. Kxh3 {[%clk 0:00:04]}  Kf8 {[%clk 0:00:24]} 51. b4 {[%clk 0:00:04]}  Ke8 {[%clk 0:00:23]} 52. g4 {[%clk 0:00:04]}  Kf8 {[%clk 0:00:22]} 53. g5 {[%clk 0:00:04]}  Nc8 {[%clk 0:00:21]} 54. Kg4 {[%clk 0:00:04]}  Ke8 {[%clk 0:00:20]} 55. Kf5 {[%clk 0:00:04]}  Nd6+ {[%clk 0:00:20]} 56. Ke5 {[%clk 0:00:04]}  Nc4+ {[%clk 0:00:20]} 57. Kd4 {[%clk 0:00:04]}  Nd2 {[%clk 0:00:19]} 58. d6 {[%clk 0:00:04]}  Nf3+ {[%clk 0:00:19]} 59. Kd5 {[%clk 0:00:04]}  Nd2 {[%clk 0:00:15]} 60. d7+ {[%clk 0:00:04]}  Kf8 {[%clk 0:00:16]} 61. d8=Q# {[%clk 0:00:05]} 1-0


[Site "https://www.chess.com"]

[Event "Titled Tuesday Blitz May 9 Late 2023"]
[White "Stead, Kerry"]
[Black "Vargas, Mauricio"]
[WhiteFideId "3202577"]
[BlackFideId "4404572"]
[WhiteElo "1997"]
[BlackElo "1986"]
[Result "0-1"]
[Round "07"]
[TimeControl "180+2"]
[Date "2023.05.09"]
[WhiteClock "0:00:00"]
[BlackClock "0:00:50"]

1. d4 {[%clk 0:03:00]}  d5 {[%clk 0:02:58]} 2. e4 {[%clk 0:02:59]}  dxe4 {[%clk 0:02:56]} 3. Nc3 {[%clk 0:02:48]}  f5 {[%clk 0:02:55]} 4. f3 {[%clk 0:02:39]}  Nf6 {[%clk 0:02:54]} 5. Bg5 {[%clk 0:02:20]}  h6 {[%clk 0:02:50]} 6. Bxf6 {[%clk 0:02:08]}  exf6 {[%clk 0:02:49]} 7. fxe4 {[%clk 0:02:07]}  fxe4 {[%clk 0:02:48]} 8. Nxe4 {[%clk 0:02:06]}  Be6 {[%clk 0:02:37]} 9. Nf3 {[%clk 0:01:48]}  Bd6 {[%clk 0:02:35]} 10. Bd3 {[%clk 0:01:36]}  O-O {[%clk 0:02:27]} 11. c3 {[%clk 0:01:33]}  Nc6 {[%clk 0:02:22]} 12. O-O {[%clk 0:01:31]}  f5 {[%clk 0:02:07]} 13. Nxd6 {[%clk 0:01:26]}  Qxd6 {[%clk 0:02:05]} 14. Qe2 {[%clk 0:01:16]}  Rfe8 {[%clk 0:02:02]} 15. Qc2 {[%clk 0:00:39]}  Ne7 {[%clk 0:01:52]} 16. Rae1 {[%clk 0:00:35]}  Rac8 {[%clk 0:01:36]} 17. Qa4 {[%clk 0:00:13]}  a6 {[%clk 0:01:32]} 18. Rxe6 {[%clk 0:00:11]}  Qxe6 {[%clk 0:01:20]} 19. Bc4 {[%clk 0:00:10]}  Nd5 {[%clk 0:01:20]} 20. Re1 {[%clk 0:00:07]}  Qf7 {[%clk 0:01:14]} 21. Rxe8+ {[%clk 0:00:03]}  Rxe8 {[%clk 0:01:12]} 22. Ne5 {[%clk 0:00:00]}  Qe6 {[%clk 0:00:50]} 0-1


[Site "https://www.chess.com"]

[Event "Titled Tuesday Blitz May 9 Late 2023"]
[White "Andreikin, Dmitry"]
[Black "Sarana, Alexey"]
[WhiteFideId "4158814"]
[BlackFideId "24133795"]
[WhiteElo "2736"]
[BlackElo "2714"]
[Result "0-1"]
[Round "08"]
[TimeControl "180+2"]
[Date "2023.05.09"]
[WhiteClock "0:00:10"]
[BlackClock "0:00:09"]

1. c4 {[%clk 0:03:00]}  e6 {[%clk 0:03:00]} 2. Nc3 {[%clk 0:03:00]}  d5 {[%clk 0:03:00]} 3. d4 {[%clk 0:03:00]}  Nf6 {[%clk 0:03:01]} 4. Bg5 {[%clk 0:02:58]}  c5 {[%clk 0:03:00]} 5. e3 {[%clk 0:02:55]}  cxd4 {[%clk 0:02:58]} 6. exd4 {[%clk 0:02:55]}  Be7 {[%clk 0:02:56]} 7. Nf3 {[%clk 0:02:52]}  O-O {[%clk 0:02:55]} 8. Rc1 {[%clk 0:02:50]}  Nc6 {[%clk 0:02:52]} 9. c5 {[%clk 0:02:48]}  Ne4 {[%clk 0:02:35]} 10. Bxe7 {[%clk 0:02:44]}  Qxe7 {[%clk 0:02:36]} 11. Bb5 {[%clk 0:02:44]}  Nxc3 {[%clk 0:02:26]} 12. Rxc3 {[%clk 0:02:43]}  e5 {[%clk 0:02:24]} 13. dxe5 {[%clk 0:02:20]}  Nxe5 {[%clk 0:02:23]} 14. O-O {[%clk 0:02:18]}  Bg4 {[%clk 0:02:14]} 15. Be2 {[%clk 0:02:00]}  Bxf3 {[%clk 0:01:54]} 16. Bxf3 {[%clk 0:02:00]}  Nxf3+ {[%clk 0:01:52]} 17. Qxf3 {[%clk 0:01:56]}  d4 {[%clk 0:01:50]} 18. Rc4 {[%clk 0:01:28]}  Rad8 {[%clk 0:01:49]} 19. Qd3 {[%clk 0:01:28]}  Qf6 {[%clk 0:00:46]} 20. h3 {[%clk 0:01:18]}  Rd5 {[%clk 0:00:46]} 21. b4 {[%clk 0:01:18]}  g6 {[%clk 0:00:44]} 22. b5 {[%clk 0:01:13]}  Rc8 {[%clk 0:00:44]} 23. Rfc1 {[%clk 0:01:12]}  Qg5 {[%clk 0:00:43]} 24. c6 {[%clk 0:01:11]}  Rxb5 {[%clk 0:00:29]} 25. c7 {[%clk 0:01:11]}  Rd5 {[%clk 0:00:26]} 26. R1c2 {[%clk 0:01:07]}  Qe5 {[%clk 0:00:21]} 27. Qb3 {[%clk 0:00:46]}  b6 {[%clk 0:00:21]} 28. Qa4 {[%clk 0:00:44]}  d3 {[%clk 0:00:15]} 29. Rc1 {[%clk 0:00:29]}  d2 {[%clk 0:00:15]} 30. Rd1 {[%clk 0:00:27]}  b5 {[%clk 0:00:15]} 31. Qa6 {[%clk 0:00:25]}  Rxc7 {[%clk 0:00:15]} 32. Rxc7 {[%clk 0:00:22]}  Qxc7 {[%clk 0:00:16]} 33. Qa3 {[%clk 0:00:20]}  Qd7 {[%clk 0:00:10]} 34. h4 {[%clk 0:00:18]}  h5 {[%clk 0:00:10]} 35. g3 {[%clk 0:00:18]}  Qe6 {[%clk 0:00:10]} 36. Kh2 {[%clk 0:00:14]}  Qe2 {[%clk 0:00:09]} 37. Qb3 {[%clk 0:00:13]}  Qxf2+ {[%clk 0:00:10]} 38. Kh3 {[%clk 0:00:14]}  Qf5+ {[%clk 0:00:09]} 39. Kh2 {[%clk 0:00:13]}  Rd3 {[%clk 0:00:08]} 40. Qc2 {[%clk 0:00:13]}  Qf2+ {[%clk 0:00:09]} 41. Kh1 {[%clk 0:00:10]}  Qf3+ {[%clk 0:00:09]} 0-1


[Site "https://www.chess.com"]

[Event "Titled Tuesday Blitz May 9 Late 2023"]
[White "Chigaev, Maksim"]
[Black "Nakamura, Hikaru"]
[WhiteFideId "4108116"]
[BlackFideId "2016192"]
[WhiteElo "2558"]
[BlackElo "2885"]
[Result "0-1"]
[Round "08"]
[TimeControl "180+2"]
[Date "2023.05.09"]
[WhiteClock "0:00:00"]
[BlackClock "0:00:29"]

1. e4 {[%clk 0:03:00]}  e5 {[%clk 0:02:59]} 2. Nf3 {[%clk 0:03:01]}  Nc6 {[%clk 0:02:59]} 3. Bc4 {[%clk 0:03:01]}  Nf6 {[%clk 0:02:59]} 4. d3 {[%clk 0:03:02]}  Bc5 {[%clk 0:03:00]} 5. c3 {[%clk 0:03:02]}  d6 {[%clk 0:02:59]} 6. Bg5 {[%clk 0:03:03]}  h6 {[%clk 0:02:59]} 7. Bh4 {[%clk 0:03:03]}  a6 {[%clk 0:02:59]} 8. Nbd2 {[%clk 0:03:03]}  Ba7 {[%clk 0:02:59]} 9. a4 {[%clk 0:03:03]}  Qe7 {[%clk 0:02:58]} 10. Qe2 {[%clk 0:03:01]}  Be6 {[%clk 0:02:52]} 11. h3 {[%clk 0:03:01]}  O-O {[%clk 0:02:51]} 12. g4 {[%clk 0:02:56]}  Bxc4 {[%clk 0:02:51]} 13. Nxc4 {[%clk 0:02:51]}  Qe6 {[%clk 0:02:51]} 14. Bxf6 {[%clk 0:02:49]}  Qxf6 {[%clk 0:02:51]} 15. Rg1 {[%clk 0:02:43]}  Ne7 {[%clk 0:02:43]} 16. g5 {[%clk 0:02:09]}  hxg5 {[%clk 0:02:44]} 17. Ne3 {[%clk 0:01:47]}  Bxe3 {[%clk 0:02:29]} 18. fxe3 {[%clk 0:01:47]}  Qh6 {[%clk 0:02:25]} 19. Rxg5 {[%clk 0:01:36]}  g6 {[%clk 0:02:06]} 20. h4 {[%clk 0:01:34]}  f6 {[%clk 0:02:05]} 21. Rg3 {[%clk 0:01:32]}  Rf7 {[%clk 0:02:06]} 22. Kd2 {[%clk 0:01:28]}  Raf8 {[%clk 0:01:58]} 23. Rag1 {[%clk 0:01:27]}  Kh8 {[%clk 0:01:55]} 24. h5 {[%clk 0:01:18]}  g5 {[%clk 0:01:50]} 25. Nh2 {[%clk 0:01:18]}  f5 {[%clk 0:01:50]} 26. exf5 {[%clk 0:00:51]}  Rxf5 {[%clk 0:01:06]} 27. R1g2 {[%clk 0:00:26]}  d5 {[%clk 0:01:06]} 28. Kc2 {[%clk 0:00:24]}  e4 {[%clk 0:01:03]} 29. dxe4 {[%clk 0:00:20]}  dxe4 {[%clk 0:01:04]} 30. Qc4 {[%clk 0:00:21]}  Qd6 {[%clk 0:00:52]} 31. Ng4 {[%clk 0:00:14]}  Nc6 {[%clk 0:00:47]} 32. Rh3 {[%clk 0:00:03]}  Rd8 {[%clk 0:00:35]} 33. Rh1 {[%clk 0:00:02]}  Qd3+ {[%clk 0:00:31]} 34. Qxd3 {[%clk 0:00:02]}  exd3+ {[%clk 0:00:32]} 35. Kd2 {[%clk 0:00:02]}  Na5 {[%clk 0:00:33]} 36. Kc1 {[%clk 0:00:02]}  Nb3+ {[%clk 0:00:29]} 37. Kb1 {[%clk 0:00:01]}  b5 {[%clk 0:00:29]} 38. axb5 {[%clk 0:00:02]}  Rxb5 {[%clk 0:00:29]} 39. Ka2 {[%clk 0:00:00]}  Rdb8 {[%clk 0:00:29]} 0-1


[Site "https://www.chess.com"]

[Event "Titled Tuesday Blitz May 9 Late 2023"]
[White "Fernandez Guillen, Ernesto J."]
[Black "Zhigalko, Sergei"]
[WhiteFideId "3512428"]
[BlackFideId "13502956"]
[WhiteElo "2429"]
[BlackElo "2626"]
[Result "0-1"]
[Round "08"]
[TimeControl "180+2"]
[Date "2023.05.09"]
[WhiteClock "0:00:04"]
[BlackClock "0:00:02"]

1. e4 {[%clk 0:03:00]}  c5 {[%clk 0:02:58]} 2. Nf3 {[%clk 0:02:37]}  Nc6 {[%clk 0:02:57]} 3. d4 {[%clk 0:02:35]}  cxd4 {[%clk 0:02:58]} 4. Nxd4 {[%clk 0:02:36]}  Nf6 {[%clk 0:02:59]} 5. Nc3 {[%clk 0:02:36]}  e5 {[%clk 0:02:59]} 6. Ndb5 {[%clk 0:02:37]}  d6 {[%clk 0:02:59]} 7. Bg5 {[%clk 0:02:37]}  a6 {[%clk 0:03:00]} 8. Na3 {[%clk 0:02:37]}  b5 {[%clk 0:03:00]} 9. Nd5 {[%clk 0:02:38]}  Be7 {[%clk 0:03:01]} 10. Bxf6 {[%clk 0:02:38]}  Bxf6 {[%clk 0:03:02]} 11. c4 {[%clk 0:02:38]}  b4 {[%clk 0:03:02]} 12. Nc2 {[%clk 0:02:39]}  O-O {[%clk 0:03:02]} 13. g3 {[%clk 0:02:39]}  a5 {[%clk 0:03:02]} 14. Bg2 {[%clk 0:02:39]}  Bg5 {[%clk 0:03:02]} 15. O-O {[%clk 0:02:40]}  Ne7 {[%clk 0:02:58]} 16. Nde3 {[%clk 0:02:39]}  Bxe3 {[%clk 0:02:57]} 17. Nxe3 {[%clk 0:02:38]}  Be6 {[%clk 0:02:58]} 18. Qd3 {[%clk 0:02:37]}  Qc7 {[%clk 0:02:53]} 19. Rfd1 {[%clk 0:02:36]}  Rfd8 {[%clk 0:02:52]} 20. b3 {[%clk 0:02:36]}  Nc6 {[%clk 0:02:51]} 21. f4 {[%clk 0:02:21]}  f6 {[%clk 0:02:46]} 22. Nd5 {[%clk 0:02:04]}  Bxd5 {[%clk 0:02:36]} 23. exd5 {[%clk 0:02:01]}  Nd4 {[%clk 0:02:36]} 24. fxe5 {[%clk 0:02:01]}  fxe5 {[%clk 0:02:25]} 25. Be4 {[%clk 0:01:59]}  g6 {[%clk 0:02:24]} 26. Rf1 {[%clk 0:01:58]}  a4 {[%clk 0:02:02]} 27. Kg2 {[%clk 0:01:25]}  Kg7 {[%clk 0:01:52]} 28. h4 {[%clk 0:01:23]}  Qe7 {[%clk 0:01:40]} 29. Qe3 {[%clk 0:01:18]}  axb3 {[%clk 0:01:19]} 30. axb3 {[%clk 0:01:17]}  Ra3 {[%clk 0:01:20]} 31. Rxa3 {[%clk 0:00:57]}  bxa3 {[%clk 0:01:21]} 32. h5 {[%clk 0:00:58]}  gxh5 {[%clk 0:01:13]} 33. Rh1 {[%clk 0:00:55]}  h6 {[%clk 0:00:35]} 34. Rxh5 {[%clk 0:00:50]}  Qf6 {[%clk 0:00:35]} 35. Rh1 {[%clk 0:00:36]}  a2 {[%clk 0:00:26]} 36. Ra1 {[%clk 0:00:35]}  Ra8 {[%clk 0:00:21]} 37. b4 {[%clk 0:00:36]}  Qg5 {[%clk 0:00:15]} 38. Qd3 {[%clk 0:00:15]}  h5 {[%clk 0:00:08]} 39. Kh2 {[%clk 0:00:04]}  h4 {[%clk 0:00:06]} 40. gxh4 {[%clk 0:00:04]}  Qxh4+ {[%clk 0:00:06]} 41. Kg2 {[%clk 0:00:04]}  Qg4+ {[%clk 0:00:04]} 42. Kf2 {[%clk 0:00:03]}  Rf8+ {[%clk 0:00:04]} 43. Ke1 {[%clk 0:00:04]}  Qg1+ {[%clk 0:00:03]} 44. Kd2 {[%clk 0:00:04]}  Qf2+ {[%clk 0:00:02]} 45. Kc3 {[%clk 0:00:04]}  Ne2+ {[%clk 0:00:02]} 46. Kb3 {[%clk 0:00:05]}  Nf4 {[%clk 0:00:01]} 47. Qc2 {[%clk 0:00:04]}  Qe3+ {[%clk 0:00:01]} 48. Kb2 {[%clk 0:00:05]}  Rb8 {[%clk 0:00:01]} 49. Rxa2 {[%clk 0:00:04]}  Rxb4+ {[%clk 0:00:01]} 50. Ka1 {[%clk 0:00:04]}  Qg1+ {[%clk 0:00:01]} 51. Qb1 {[%clk 0:00:04]}  Rxb1+ {[%clk 0:00:02]} 52. Bxb1 {[%clk 0:00:04]}  Qd4+ {[%clk 0:00:02]} 0-1


[Site "https://www.chess.com"]

[Event "Titled Tuesday Blitz May 9 Late 2023"]
[White "Yoo, Christopher Woojin"]
[Black "Naroditsky, Daniel"]
[WhiteFideId "30909694"]
[BlackFideId "2026961"]
[WhiteElo "2519"]
[BlackElo "2633"]
[Result "1-0"]
[Round "08"]
[TimeControl "180+2"]
[Date "2023.05.09"]
[WhiteClock "0:00:04"]
[BlackClock "0:00:01"]

1. e4 {[%clk 0:03:00]}  c5 {[%clk 0:02:58]} 2. Nf3 {[%clk 0:03:01]}  d6 {[%clk 0:02:58]} 3. d4 {[%clk 0:03:02]}  cxd4 {[%clk 0:02:59]} 4. Nxd4 {[%clk 0:03:02]}  Nf6 {[%clk 0:03:00]} 5. Nc3 {[%clk 0:03:03]}  a6 {[%clk 0:03:00]} 6. Bg5 {[%clk 0:02:58]}  e6 {[%clk 0:03:00]} 7. f4 {[%clk 0:02:58]}  Be7 {[%clk 0:03:01]} 8. Qf3 {[%clk 0:02:59]}  Qc7 {[%clk 0:03:01]} 9. O-O-O {[%clk 0:02:57]}  Nbd7 {[%clk 0:03:02]} 10. g4 {[%clk 0:02:57]}  h6 {[%clk 0:03:02]} 11. Qh3 {[%clk 0:02:55]}  Nc5 {[%clk 0:02:46]} 12. Bg2 {[%clk 0:02:50]}  Bd7 {[%clk 0:02:37]} 13. Bh4 {[%clk 0:02:49]}  g5 {[%clk 0:02:31]} 14. Bxg5 {[%clk 0:02:39]}  O-O-O {[%clk 0:02:22]} 15. Bh4 {[%clk 0:02:39]}  Kb8 {[%clk 0:02:09]} 16. Qf3 {[%clk 0:02:24]}  Rhe8 {[%clk 0:01:43]} 17. Rhe1 {[%clk 0:01:55]}  Rc8 {[%clk 0:01:34]} 18. Kb1 {[%clk 0:01:39]}  Qb6 {[%clk 0:01:03]} 19. Nb3 {[%clk 0:01:36]}  Bc6 {[%clk 0:00:52]} 20. Bf2 {[%clk 0:01:25]}  Qc7 {[%clk 0:00:48]} 21. Nd4 {[%clk 0:01:21]}  Bd7 {[%clk 0:00:44]} 22. e5 {[%clk 0:01:18]}  dxe5 {[%clk 0:00:43]} 23. fxe5 {[%clk 0:01:11]}  Ng8 {[%clk 0:00:37]} 24. h4 {[%clk 0:00:49]}  Red8 {[%clk 0:00:37]} 25. Qe3 {[%clk 0:00:46]}  Be8 {[%clk 0:00:21]} 26. Ka1 {[%clk 0:00:36]}  Qb6 {[%clk 0:00:18]} 27. Rb1 {[%clk 0:00:28]}  Bxh4 {[%clk 0:00:17]} 28. Bxh4 {[%clk 0:00:22]}  Rxd4 {[%clk 0:00:18]} 29. Bf2 {[%clk 0:00:17]}  Rxg4 {[%clk 0:00:17]} 30. Bf3 {[%clk 0:00:17]}  Rc4 {[%clk 0:00:17]} 31. b3 {[%clk 0:00:16]}  Rb4 {[%clk 0:00:12]} 32. Ne4 {[%clk 0:00:10]}  Rb5 {[%clk 0:00:05]} 33. Nd6 {[%clk 0:00:09]}  Bd7 {[%clk 0:00:02]} 34. Nxc8 {[%clk 0:00:08]}  Bxc8 {[%clk 0:00:03]} 35. b4 {[%clk 0:00:07]}  Nd7 {[%clk 0:00:02]} 36. c4 {[%clk 0:00:04]}  Qxe3 {[%clk 0:00:02]} 37. Bxe3 {[%clk 0:00:05]}  Nxe5 {[%clk 0:00:02]} 38. Bf4 {[%clk 0:00:04]}  Rb6 {[%clk 0:00:02]} 39. Bxe5+ {[%clk 0:00:04]}  Ka8 {[%clk 0:00:03]} 40. Rg1 {[%clk 0:00:04]}  Ne7 {[%clk 0:00:03]} 41. Rg7 {[%clk 0:00:04]}  Ng6 {[%clk 0:00:03]} 42. Bg3 {[%clk 0:00:03]}  a5 {[%clk 0:00:02]} 43. Rg8 {[%clk 0:00:03]}  axb4 {[%clk 0:00:01]} 44. Rxc8+ {[%clk 0:00:04]}  Ka7 {[%clk 0:00:01]} 45. Bf2 {[%clk 0:00:04]}  Ne5 {[%clk 0:00:01]} 46. Rxb4 {[%clk 0:00:04]}  Nxf3 {[%clk 0:00:01]} 47. Bxb6+ {[%clk 0:00:04]} 1-0


[Site "https://www.chess.com"]

[Event "Titled Tuesday Blitz May 9 Late 2023"]
[White "Xiong, Jeffery"]
[Black "Bortnyk, Olexandr"]
[WhiteFideId "2047640"]
[BlackFideId "14120828"]
[WhiteElo "2726"]
[BlackElo "2734"]
[Result "0-1"]
[Round "08"]
[TimeControl "180+2"]
[Date "2023.05.09"]
[WhiteClock "0:00:07"]
[BlackClock "0:00:24"]

1. d4 {[%clk 0:03:00]}  Nf6 {[%clk 0:02:55]} 2. Nf3 {[%clk 0:03:01]}  b6 {[%clk 0:02:55]} 3. c4 {[%clk 0:03:00]}  Bb7 {[%clk 0:02:56]} 4. g3 {[%clk 0:03:00]}  g6 {[%clk 0:02:56]} 5. Bg2 {[%clk 0:03:00]}  Bg7 {[%clk 0:02:57]} 6. O-O {[%clk 0:03:01]}  O-O {[%clk 0:02:57]} 7. Qc2 {[%clk 0:03:00]}  Na6 {[%clk 0:02:49]} 8. Nc3 {[%clk 0:02:59]}  c5 {[%clk 0:02:42]} 9. d5 {[%clk 0:02:59]}  Ne8 {[%clk 0:02:37]} 10. e4 {[%clk 0:02:59]}  e5 {[%clk 0:02:37]} 11. a3 {[%clk 0:02:44]}  Nd6 {[%clk 0:02:37]} 12. Qd3 {[%clk 0:02:37]}  f5 {[%clk 0:02:34]} 13. Re1 {[%clk 0:02:35]}  Qf6 {[%clk 0:02:31]} 14. b3 {[%clk 0:01:58]}  Rae8 {[%clk 0:02:30]} 15. Bb2 {[%clk 0:01:56]}  f4 {[%clk 0:02:14]} 16. g4 {[%clk 0:01:46]}  g5 {[%clk 0:02:14]} 17. h4 {[%clk 0:01:43]}  gxh4 {[%clk 0:02:09]} 18. Bh3 {[%clk 0:01:44]}  Nf7 {[%clk 0:02:08]} 19. Kf1 {[%clk 0:01:43]}  h6 {[%clk 0:02:01]} 20. Ke2 {[%clk 0:01:43]}  Ng5 {[%clk 0:01:57]} 21. Rh1 {[%clk 0:01:43]}  Nc7 {[%clk 0:01:50]} 22. Bg2 {[%clk 0:01:16]}  Nxf3 {[%clk 0:01:40]} 23. Bxf3 {[%clk 0:01:16]}  Qd8 {[%clk 0:01:36]} 24. Rh3 {[%clk 0:01:14]}  Bf6 {[%clk 0:01:36]} 25. Rah1 {[%clk 0:01:14]}  Bg5 {[%clk 0:01:35]} 26. Kd1 {[%clk 0:01:12]}  d6 {[%clk 0:01:33]} 27. Be2 {[%clk 0:01:11]}  Bc8 {[%clk 0:01:33]} 28. R3h2 {[%clk 0:01:01]}  f3 {[%clk 0:01:30]} 29. Bxf3 {[%clk 0:01:01]}  Rf7 {[%clk 0:01:29]} 30. Be2 {[%clk 0:00:56]}  Ref8 {[%clk 0:01:29]} 31. f3 {[%clk 0:00:56]}  a6 {[%clk 0:01:25]} 32. Bc1 {[%clk 0:00:56]}  Bd7 {[%clk 0:01:24]} 33. a4 {[%clk 0:00:51]}  b5 {[%clk 0:01:23]} 34. cxb5 {[%clk 0:00:49]}  axb5 {[%clk 0:01:24]} 35. axb5 {[%clk 0:00:47]}  Na8 {[%clk 0:01:15]} 36. Bd2 {[%clk 0:00:42]}  Nb6 {[%clk 0:01:13]} 37. Be1 {[%clk 0:00:40]}  Qa8 {[%clk 0:01:11]} 38. Bxh4 {[%clk 0:00:39]}  Bf4 {[%clk 0:01:03]} 39. Rh3 {[%clk 0:00:40]}  c4 {[%clk 0:01:03]} 40. bxc4 {[%clk 0:00:37]}  Rc8 {[%clk 0:00:44]} 41. Ke1 {[%clk 0:00:37]}  Rxc4 {[%clk 0:00:38]} 42. Nd1 {[%clk 0:00:35]}  Bxb5 {[%clk 0:00:34]} 43. Qb3 {[%clk 0:00:35]}  Qa5+ {[%clk 0:00:33]} 44. Kf2 {[%clk 0:00:34]}  Rb4 {[%clk 0:00:34]} 45. Qc2 {[%clk 0:00:28]}  Bxe2 {[%clk 0:00:31]} 46. Qxe2 {[%clk 0:00:27]}  Ra4 {[%clk 0:00:27]} 47. Nb2 {[%clk 0:00:19]}  Ra2 {[%clk 0:00:27]} 48. Rb1 {[%clk 0:00:07]}  Na4 {[%clk 0:00:24]} 0-1


[Site "https://www.chess.com"]